bitfinex-derivatives/quotes_BTCF0:USTF0_20210404
["timestamp","ask_amount","ask_price","bid_price","bid_amount"]
[1617548561575,0.28748729,58127.0,58126.0,6.23512985]
[1617548561776,0.28748729,58127.0,58126.0,6.88311419]
[1617548561975,0.28748729,58127.0,58126.0,5.38311419]
[1617548562176,0.28748729,58127.0,58126.0,5.5244744]
[1617548562577,0.28748729,58127.0,58126.0,5.38311419]
[1617548563776,0.28647764,58127.0,58126.0,5.38311419]
[1617548563978,0.28647764,58127.0,58126.0,6.07815626]
[1617548565281,0.28647764,58127.0,58126.0,6.51476827]
[1617548567484,0.28647764,58127.0,58126.0,8.01476827]
[1617548567981,0.28647764,58127.0,58126.0,6.51476827]
[1617548568183,0.28647764,58127.0,58126.0,6.65611227]
[1617548568782,0.28647764,58127.0,58126.0,6.51476827]
[1617548568983,0.28147764,58127.0,58126.0,6.51476827]
[1617548569589,1.0,58148.0,58126.0,7.3197262]
[1617548569790,1.0,58150.0,58126.0,7.3197262]
[1617548569984,1.0,58149.0,58126.0,7.3197262]
[1617548570187,1.0,58149.0,58147.0,0.79153536]
[1617548570382,1.0,58148.0,58147.0,0.79153536]
[1617548570584,0.488,58156.0,58146.0,0.10535]
[1617548570784,1.0,58148.0,58147.0,0.01]
[1617548570984,1.0,58148.0,58147.0,0.8624707]
[1617548571184,1.10725655,58148.0,58147.0,0.96972725]
[1617548572184,1.10725655,58148.0,58147.0,0.53418481]
[1617548572384,1.10725655,58148.0,58147.0,3.32748481]
[1617548572585,1.10725655,58148.0,58147.0,3.76299412]
[1617548572984,1.10725655,58148.0,58147.0,3.85386007]
[1617548574486,1.10725655,58148.0,58147.0,3.32748481]
[1617548574686,0.10725655,58148.0,58147.0,3.32748481]
[1617548574887,1.10725655,58148.0,58147.0,3.32748481]
[1617548575088,0.10725655,58148.0,58147.0,0.42692826]
[1617548575286,1.10725655,58148.0,58147.0,0.42692826]
[1617548575487,2.65905655,58148.0,58147.0,0.42692826]
[1617548575687,2.60725655,58148.0,58147.0,0.42692826]
[1617548575888,2.60725655,58148.0,58147.0,0.01]
[1617548576287,1.10725655,58148.0,58144.0,0.62652133]
[1617548576687,1.10725655,58148.0,58147.0,0.01]
[1617548576887,1.10725655,58148.0,58145.0,0.27]
[1617548577287,1.10725655,58148.0,58144.0,0.36653751]
[1617548577487,1.10725655,58148.0,58145.0,0.26]
[1617548578087,1.0,58146.0,58145.0,0.26]
[1617548578287,1.0,58146.0,58144.0,0.02]
[1617548579589,1.0,58145.0,58144.0,0.02]
[1617548580491,1.0,58145.0,58141.0,0.35681072]
[1617548580691,1.0,58145.0,58142.0,0.02]
[1617548580892,1.0,58145.0,58141.0,0.35681072]
[1617548581092,1.0,58145.0,58136.0,0.43611899]
[1617548581093,1.0,58142.0,58140.0,0.35688195]
[1617548581292,1.10725655,58142.0,58140.0,0.35688195]
[1617548581492,1.10725655,58142.0,58141.0,0.01]
[1617548581910,0.10725655,58142.0,58141.0,0.01]
[1617548582295,1.10725655,58142.0,58141.0,0.01]
[1617548582505,1.10725655,58142.0,58141.0,0.42726972]
[1617548582899,1.10725655,58142.0,58141.0,0.85295438]
[1617548583195,1.10725655,58142.0,58141.0,0.96021093]
[1617548583396,1.10725655,58142.0,58141.0,0.97021093]
[1617548583797,1.10725655,58142.0,58141.0,3.57791093]
[1617548584197,1.10725655,58142.0,58141.0,3.66877936]
[1617548585498,1.10725655,58142.0,58141.0,2.87640727]
[1617548586297,1.10725655,58142.0,58141.0,3.66899674]
[1617548587199,1.10725655,58142.0,58141.0,3.56174019]
[1617548587601,1.10725655,58142.0,58141.0,3.03494755]
[1617548594909,0.10725655,58142.0,58141.0,3.03494755]
[1617548595112,1.10725655,58142.0,58141.0,3.03494755]
[1617548595511,0.10725655,58142.0,58141.0,3.03494755]
[1617548595717,1.10725655,58142.0,58141.0,3.03494755]
[1617548606022,1.10725655,58142.0,58141.0,3.47240843]
[1617548606922,1.10725655,58142.0,58141.0,0.86470843]
[1617548607722,1.10725655,58142.0,58141.0,0.80412614]
[1617548608326,1.10725655,58142.0,58141.0,0.86471219]
[1617548615030,1.10725655,58142.0,58141.0,0.42725131]
[1617548615430,1.10725655,58142.0,58141.0,0.86495709]
[1617548617735,1.47020915,58142.0,58141.0,0.86495709]
[1617548618135,1.10725655,58142.0,58141.0,0.86495709]
[1617548620237,0.10725655,58142.0,58141.0,0.86495709]
[1617548620438,1.10725655,58142.0,58141.0,0.86495709]
[1617548621139,1.10725655,58142.0,58141.0,1.36266375]
[1617548629045,1.10725655,58142.0,58141.0,4.46706375]
[1617548629747,1.10725655,58142.0,58141.0,4.5579424]
[1617548634049,1.47075839,58142.0,58141.0,4.5579424]
[1617548634248,1.47075839,58142.0,58141.0,4.5479424]
[1617548634849,1.47075839,58142.0,58141.0,1.4435424]
[1617548635450,1.47075839,58142.0,58141.0,1.2920777]
[1617548635850,1.47075839,58142.0,58141.0,1.35266472]
[1617548636250,0.47075839,58142.0,58141.0,1.35266472]
[1617548636451,5.54545839,58142.0,58141.0,1.2920777]
[1617548636651,2.97075839,58142.0,58141.0,1.2920777]
[1617548636852,8.2737016,58142.0,58141.0,0.75137104]
[1617548637252,9.22288874,58142.0,58141.0,0.37425876]
[1617548637451,9.22288874,58142.0,58141.0,0.33125876]
[1617548637653,13.11594346,58142.0,58135.0,0.4395407]
[1617548638052,0.10725655,58136.0,58135.0,0.4395407]
[1617548638253,1.5,58135.0,58132.0,0.43972559]
[1617548638453,0.0509,58134.0,58132.0,0.43972559]
[1617548638654,0.74730669,58133.0,58131.0,0.43977179]
[1617548639255,1.0,58132.0,58127.0,0.76955597]
[1617548639454,1.0,58132.0,58127.0,0.49955597]
[1617548639657,0.30298314,58128.0,58127.0,0.49955597]
[1617548639855,1.30298314,58128.0,58127.0,0.49955597]
[1617548640054,1.30298314,58128.0,58127.0,0.93912041]
[1617548640055,1.41023969,58128.0,58127.0,0.93912041]
[1617548640369,1.41023969,58128.0,58127.0,0.43956444]
[1617548641359,1.41023969,58128.0,58127.0,0.93938707]
[1617548641758,1.41023969,58128.0,58127.0,0.43956444]
[1617548642261,1.41023969,58128.0,58127.0,0.93942121]
[1617548642661,1.41023969,58128.0,58127.0,0.43956444]
[1617548642662,1.85455002,58128.0,58127.0,0.43956444]
[1617548644667,1.90625002,58128.0,58127.0,0.43956444]
[1617548645963,1.85455002,58128.0,58127.0,0.43956444]
[1617548646765,5.33315002,58128.0,58127.0,0.43956444]
[1617548646965,5.38455002,58128.0,58127.0,0.43956444]
[1617548647165,5.65686076,58128.0,58127.0,0.43956444]
[1617548648165,5.70876076,58128.0,58127.0,0.43956444]
[1617548650572,5.65686076,58128.0,58127.0,0.43956444]
[1617548651273,5.33315002,58128.0,58127.0,0.43956444]
[1617548651673,4.88883969,58128.0,58125.0,0.43778932]
[1617548652289,1.0,58126.0,58125.0,0.43778932]
[1617548652500,1.0,58126.0,58120.0,0.49744272]
[1617548652775,1.0,58126.0,58125.0,0.4377736]
[1617548652973,0.30197882,58127.0,58125.0,0.4377736]
[1617548653176,1.0,58126.0,58125.0,0.4377736]
[1617548653675,1.0,58126.0,58124.0,0.4378104]
[1617548654075,1.0,58126.0,58116.0,0.10725655]
[1617548654076,1.30198087,58126.0,58118.0,0.49757305]
[1617548654276,0.10725655,58119.0,58118.0,0.49757305]
[1617548654477,0.10725655,58119.0,58117.0,0.49760254]
[1617548654879,0.10725655,58119.0,58118.0,0.43789442]
[1617548655478,0.10725655,58119.0,58118.0,0.70789442]
[1617548657280,1.10725655,58119.0,58118.0,0.70789442]
[1617548663088,1.10725655,58119.0,58118.0,1.06581305]
[1617548667389,1.10725655,58119.0,58118.0,0.62791863]
[1617548667590,1.10725655,58119.0,58118.0,1.06506615]
[1617548668490,0.10725655,58119.0,58118.0,1.06506615]
[1617548668691,1.10725655,58119.0,58118.0,1.06506615]
[1617548669391,1.10725655,58119.0,58118.0,0.62791863]
[1617548669592,1.10725655,58119.0,58118.0,1.06522591]
[1617548670594,1.10725655,58119.0,58118.0,1.12582534]
[1617548676006,1.10725655,58119.0,58118.0,1.62229884]
[1617548677305,1.10725655,58119.0,58118.0,1.12582534]
[1617548677704,1.10725655,58119.0,58118.0,1.62223081]
[1617548681708,1.10725655,58119.0,58118.0,1.12582534]
[1617548682308,1.10725655,58119.0,58118.0,1.62248283]
[1617548684310,0.10725655,58119.0,58118.0,1.62248283]
[1617548684510,1.10725655,58119.0,58118.0,1.62248283]
[1617548686212,3.65065655,58119.0,58118.0,1.62248283]
[1617548688114,1.10725655,58119.0,58118.0,1.62248283]
[1617548689115,1.10725655,58119.0,58118.0,4.62762534]
[1617548689614,1.10725655,58119.0,58118.0,4.71852776]
[1617548689914,1.10725655,58119.0,58118.0,1.21672776]
[1617548690115,0.10725655,58119.0,58118.0,1.21672776]
[1617548690314,4.03185655,58119.0,58118.0,1.21672776]
[1617548690515,4.03185655,58119.0,58118.0,1.12582534]
[1617548690714,1.10725655,58119.0,58118.0,1.12582534]
[1617548690915,1.10725655,58119.0,58118.0,4.31292534]
[1617548691516,1.10725655,58119.0,58118.0,4.40383081]
[1617548692817,1.40999923,58119.0,58118.0,4.90243365]
[1617548693619,0.40999923,58119.0,58118.0,4.90243365]
[1617548694020,1.40999923,58119.0,58118.0,4.90243365]
[1617548701527,1.46119923,58119.0,58118.0,4.90243365]
[1617548701728,1.40999923,58119.0,58118.0,4.90243365]
[1617548705232,1.40999923,58119.0,58118.0,4.89983365]
[1617548705633,1.40999923,58119.0,58118.0,4.89463365]
[1617548710641,1.40999923,58119.0,58118.0,4.89223365]
[1617548711241,0.40999923,58119.0,58118.0,4.89223365]
[1617548711441,1.40999923,58119.0,58118.0,4.89223365]
[1617548714445,1.30274268,58119.0,58118.0,4.89223365]
[1617548715047,1.40999923,58119.0,58118.0,4.89223365]
[1617548716847,1.10725655,58119.0,58118.0,4.89223365]
[1617548717749,1.40992144,58119.0,58118.0,4.89223365]
[1617548718849,1.46152144,58119.0,58118.0,4.89223365]
[1617548722055,1.40992144,58119.0,58118.0,4.89223365]
[1617548724658,1.10725655,58119.0,58118.0,4.89223365]
[1617548725059,1.40992226,58119.0,58118.0,4.89223365]
[1617548729963,0.11744417,58119.0,58118.0,4.89223365]
[1617548730165,1.11744417,58119.0,58118.0,5.00424365]
[1617548731469,1.11744417,58119.0,58118.0,1.81714365]
[1617548731673,1.11744417,58119.0,58118.0,1.70513365]
[1617548731868,1.10725655,58119.0,58118.0,1.61422818]
[1617548732068,1.40996218,58119.0,58118.0,1.61422818]
[1617548732269,4.52316218,58119.0,58118.0,1.61422818]
[1617548733969,4.57476218,58119.0,58118.0,1.61422818]
[1617548734170,4.52316218,58119.0,58118.0,1.61422818]
[1617548734972,3.52316218,58119.0,58118.0,1.61422818]
[1617548735173,1.40996218,58119.0,58118.0,1.61422818]
[1617548736272,1.40996218,58119.0,58118.0,4.52302818]
[1617548736874,1.40996218,58119.0,58118.0,4.61393426]
[1617548740277,1.40996218,58119.0,58118.0,4.11533142]
[1617548741477,1.77317793,58119.0,58118.0,4.11533142]
[1617548744481,1.40996218,58119.0,58118.0,4.11533142]
[1617548744882,1.40996218,58119.0,58118.0,4.61364893]
[1617548744883,1.77356497,58119.0,58118.0,4.61364893]
[1617548747285,1.77356497,58119.0,58118.0,1.70484893]
[1617548747986,1.77356497,58119.0,58118.0,1.61394285]
[1617548748388,5.48966497,58119.0,58118.0,1.61394285]
[1617548749189,4.48966497,58119.0,58118.0,1.61394285]
[1617548749388,5.48966497,58119.0,58118.0,1.61394285]
[1617548755696,5.48966497,58119.0,58118.0,1.11562534]
[1617548759704,5.93398916,58119.0,58118.0,1.11562534]
[1617548760404,5.93398916,58119.0,58118.0,0.85582534]
[1617548761004,4.93398916,58119.0,58118.0,0.81382534]
[1617548761206,5.93398916,58119.0,58118.0,0.77182534]
[1617548761405,6.43894782,58119.0,58118.0,0.33451806]
[1617548761807,11.43894782,58119.0,58111.0,0.43993367]
[1617548762205,1.16180337,58118.0,58116.0,0.33061626]
[1617548762406,6.16180337,58118.0,58116.0,0.33061626]
[1617548762607,6.16180337,58118.0,58116.0,0.06061626]
[1617548762805,0.74556732,58117.0,58105.0,0.43891007]
[1617548763205,1.30228115,58106.0,58105.0,0.39691007]
[1617548763405,1.5527877,58106.0,58105.0,0.39691007]
[1617548763606,1.5527877,58106.0,58105.0,0.33061917]
[1617548764007,1.79526115,58106.0,58105.0,0.33061917]
[1617548764409,1.5527877,58106.0,58105.0,0.33061917]
[1617548764808,1.5527877,58106.0,58105.0,3.05511917]
[1617548767412,1.6044877,58106.0,58105.0,3.05511917]
[1617548769913,1.30220655,58106.0,58105.0,0.33061917]
[1617548770113,1.30220655,58106.0,58105.0,0.28861917]
[1617548770314,1.60417931,58106.0,58105.0,0.26371917]
[1617548770715,1.60417931,58106.0,58105.0,0.25381917]
[1617548770918,1.60417931,58106.0,58105.0,0.10651917]
[1617548771317,4.55077931,58106.0,58105.0,0.10651917]
[1617548772918,4.25896954,58106.0,58105.0,0.10651917]
[1617548773717,4.55077852,58106.0,58105.0,0.10651917]
[1617548774117,1.60417852,58106.0,58105.0,0.10651917]
[1617548774921,1.60417852,58106.0,58105.0,3.66561917]
[1617548776725,1.31236772,58106.0,58105.0,3.66561917]
[1617548777526,1.60412544,58106.0,58105.0,3.66561917]
[1617548779231,1.30220655,58106.0,58105.0,3.66561917]
[1617548779727,1.60413779,58106.0,58105.0,3.66561917]
[1617548784635,1.60413779,58106.0,58105.0,3.605]
[1617548785037,1.60413779,58106.0,58105.0,0.0459]
[1617548785235,4.31263779,58106.0,58105.0,0.0056]
[1617548785435,4.31263779,58106.0,58098.0,0.438935]
[1617548785636,4.31263779,58106.0,58105.0,0.27]
[1617548785835,4.31263779,58106.0,58105.0,0.2366]
[1617548786036,4.31263779,58106.0,58097.0,0.43883257]
[1617548786037,0.00512961,58100.0,58097.0,0.43883257]
[1617548786236,0.00512961,58100.0,58099.0,0.01]
[1617548786436,0.00512961,58100.0,58099.0,0.35903167]
[1617548786837,0.00512961,58100.0,58099.0,0.62903167]
[1617548787237,0.05592961,58100.0,58099.0,0.62903167]
[1617548787437,0.16318616,58100.0,58099.0,0.68965114]
[1617548787738,1.16318616,58100.0,58099.0,0.68965114]
[1617548790949,1.15805655,58100.0,58099.0,0.27]
[1617548791349,1.15805655,58100.0,58091.0,0.27]
[1617548791542,1.0559309,58100.0,58099.0,0.35906619]
[1617548791750,1.0559309,58100.0,58099.0,0.62906619]
[1617548791943,1.0559309,58100.0,58099.0,0.35906619]
[1617548792343,1.0559309,58100.0,58099.0,0.62906619]
[1617548793645,1.16318745,58100.0,58099.0,0.62906619]
[1617548794346,1.15805655,58100.0,58099.0,0.62906619]
[1617548794747,1.16318743,58100.0,58099.0,0.62906619]
[1617548799150,1.15805655,58100.0,58099.0,0.62906619]
[1617548799551,1.16318761,58100.0,58099.0,0.62906619]
[1617548800954,1.46533651,58100.0,58099.0,1.06821684]
[1617548801157,1.46020545,58100.0,58099.0,1.06821684]
[1617548801555,1.46020545,58100.0,58099.0,0.62906619]
[1617548808268,0.46020545,58100.0,58099.0,0.62906619]
[1617548808667,1.46020545,58100.0,58099.0,0.62906619]
[1617548808868,4.01930545,58100.0,58099.0,0.62906619]
[1617548811572,4.38257479,58100.0,58099.0,1.06914587]
[1617548811971,1.82347479,58100.0,58099.0,1.06914587]
[1617548812575,1.82347479,58100.0,58099.0,4.78024587]
[1617548813172,1.82347479,58100.0,58099.0,1.16008112]
[1617548813372,9.95117479,58100.0,58099.0,0.89008112]
[1617548813585,9.95117479,58100.0,58099.0,0.84708112]
[1617548813777,10.39515914,58100.0,58099.0,0.31606619]
[1617548814202,10.39515914,58100.0,58094.0,0.44049678]
[1617548814577,0.74707188,58099.0,58094.0,0.44049678]
[1617548814787,1.74679501,58095.0,58092.0,0.44067425]
[1617548815185,0.74679575,58093.0,58092.0,0.44067425]
[1617548815384,1.86347575,58093.0,58092.0,0.44067425]
[1617548815576,2.10599054,58093.0,58086.0,0.50076619]
[1617548815782,2.10599054,58093.0,58092.0,0.0606287]
[1617548815977,2.10599054,58093.0,58087.0,0.27]
[1617548816177,1.10599054,58093.0,58087.0,0.27]
[1617548816380,1.10599054,58093.0,58086.0,0.50076619]
[1617548816575,1.10599054,58093.0,58092.0,0.06062947]
[1617548816776,0.98931054,58093.0,58092.0,0.06062947]
[1617548816977,1.0,58093.0,58092.0,2.7952]
[1617548817175,2.0,58093.0,58092.0,2.7952]
[1617548817377,1.30276897,58093.0,58092.0,2.85582805]
[1617548817777,1.30276897,58093.0,58092.0,2.9630846]
[1617548817978,1.605525,58093.0,58092.0,0.52882279]
[1617548818378,1.605525,58093.0,58092.0,0.93816928]
[1617548818777,1.605525,58093.0,58092.0,0.4378846]
[1617548821383,1.605525,58093.0,58092.0,0.4287846]
[1617548824284,1.605525,58093.0,58092.0,4.0983846]
[1617548824684,1.605525,58093.0,58092.0,4.18932065]
[1617548824987,1.605525,58093.0,58092.0,4.68965565]
[1617548825595,1.0,58093.0,58092.0,4.68965565]
[1617548825789,0.36374294,58103.0,58092.0,4.68965565]
[1617548825994,1.0,58095.0,58092.0,4.68965565]
[1617548826398,1.0,58095.0,58093.0,0.6518873]
[1617548826800,1.0,58095.0,58094.0,0.27]
[1617548827192,1.30276442,58095.0,58094.0,0.33062303]
[1617548828997,1.30276442,58095.0,58094.0,0.8310499]
[1617548830795,1.30276442,58095.0,58094.0,0.33062303]
[1617548831993,1.0,58095.0,58094.0,0.33062303]
[1617548832195,1.30277115,58095.0,58094.0,0.33062303]
[1617548832395,1.30277115,58095.0,58094.0,0.32812303]
[1617548833694,1.35357115,58095.0,58094.0,0.32812303]
[1617548833894,1.30277115,58095.0,58094.0,0.32812303]
[1617548834895,1.30277115,58095.0,58094.0,0.31822303]
[1617548835600,1.74677614,58095.0,58094.0,0.75939759]
[1617548836097,1.74677614,58095.0,58094.0,0.31822303]
[1617548836797,0.74677614,58095.0,58094.0,0.31822303]
[1617548836998,1.74677614,58095.0,58094.0,0.31822303]
[1617548837799,1.30277115,58095.0,58094.0,0.75926801]
[1617548838601,1.74677573,58095.0,58094.0,0.75926801]
[1617548839001,2.11006867,58095.0,58094.0,1.12022331]
[1617548842603,2.11006867,58095.0,58094.0,0.67917833]
[1617548844308,1.11006867,58095.0,58094.0,0.67917833]
[1617548844508,5.50586867,58095.0,58094.0,0.42157833]
[1617548844908,5.50586867,58095.0,58094.0,0.3609553]
[1617548845409,6.11216975,58095.0,58094.0,0.42158541]
[1617548845610,11.11216975,58095.0,58094.0,0.42158541]
[1617548846010,11.61671179,58095.0,58093.0,0.36223735]
[1617548846209,11.61671179,58095.0,58093.0,0.41453735]
[1617548846210,6.61671179,58095.0,58093.0,0.41453735]
[1617548846411,1.71638847,58094.0,58093.0,0.0523]
[1617548846610,2.71638847,58094.0,58090.0,0.27]
[1617548846810,2.71638847,58094.0,58093.0,0.3623266]
[1617548847811,2.35260402,58094.0,58093.0,0.3623266]
[1617548848011,2.40460402,58094.0,58093.0,0.3623266]
[1617548848510,2.35260402,58094.0,58093.0,0.3623266]
[1617548849611,2.35260402,58094.0,58093.0,0.6239266]
[1617548849812,2.35260402,58094.0,58093.0,0.67875701]
[1617548850012,2.40380402,58094.0,58093.0,0.67875701]
[1617548850213,2.35260402,58094.0,58093.0,0.67875701]
[1617548850618,5.96490402,58094.0,58093.0,0.67875701]
[1617548850823,2.35260402,58094.0,58093.0,0.67875701]
[1617548851019,2.35260402,58094.0,58093.0,3.17595701]
[1617548851819,2.35260402,58094.0,58093.0,2.90595701]
[1617548852215,2.40490402,58094.0,58093.0,2.90595701]
[1617548852714,2.40490402,58094.0,58093.0,2.55783041]
[1617548852913,2.57388402,58094.0,58093.0,2.55313041]
[1617548854115,2.57388402,58094.0,58093.0,0.05593041]
[1617548854315,7.57388402,58094.0,58093.0,0.05593041]
[1617548854717,5.0,58093.0,58087.0,0.44323692]
[1617548854918,3.4584,58092.0,58087.0,0.44323692]
[1617548855117,0.44367635,58091.0,58088.0,0.27]
[1617548855517,0.44367394,58090.0,58089.0,0.06063424]
[1617548855919,0.30253714,58090.0,58089.0,0.07063424]
[1617548856131,0.40979369,58090.0,58089.0,0.07063424]
[1617548856323,2.09602064,58090.0,58089.0,0.07063424]
[1617548858023,2.09602064,58090.0,58089.0,0.01]
[1617548858424,2.09602064,58090.0,58083.0,0.27]
[1617548858826,2.09602064,58090.0,58089.0,0.01]
[1617548859024,1.10725655,58090.0,58083.0,0.27]
[1617548859426,2.21575111,58090.0,58089.0,0.27]
[1617548859624,1.21575111,58090.0,58083.0,0.27]
[1617548859825,0.85190523,58090.0,58083.0,0.27]
[1617548860024,0.74464868,58090.0,58089.0,0.27]
[1617548860225,0.36384666,58091.0,58082.0,0.44328849]
[1617548860425,0.36384666,58091.0,58083.0,0.27]
[1617548860625,1.74457517,58090.0,58083.0,0.27]
[1617548860826,0.74457517,58090.0,58083.0,0.27]
[1617548861028,0.30187826,58084.0,58082.0,0.01]
[1617548861227,1.30187826,58084.0,58082.0,0.01]
[1617548861429,1.30187826,58084.0,58081.0,0.44329565]
[1617548861628,1.30188313,58083.0,58081.0,0.44329565]
[1617548861829,0.30188313,58083.0,58082.0,0.2574]
[1617548862036,0.34982443,58083.0,58082.0,0.2574]
[1617548862431,0.65168882,58083.0,58082.0,0.76132675]
[1617548862836,1.65168882,58083.0,58082.0,0.76132675]
[1617548863030,1.40912094,58083.0,58082.0,0.76132675]
[1617548865331,1.46132094,58083.0,58082.0,0.76132675]
[1617548865731,0.46132094,58083.0,58082.0,0.76132675]
[1617548865932,1.46132094,58083.0,58082.0,0.76132675]
[1617548866132,1.40912094,58083.0,58082.0,0.76132675]
[1617548867632,1.10725655,58083.0,58082.0,0.2574]
[1617548868234,1.40946856,58083.0,58082.0,0.70068938]
[1617548869136,1.40946856,58083.0,58082.0,0.76132941]
[1617548869334,1.54870856,58083.0,58082.0,0.76132941]
[1617548870136,1.24649655,58083.0,58082.0,0.76132941]
[1617548870338,1.10725655,58083.0,58082.0,0.76132941]
[1617548870535,1.10725655,58083.0,58082.0,0.89930941]
[1617548870935,1.40964822,58083.0,58082.0,0.89930941]
[1617548871737,1.40964822,58083.0,58082.0,0.76132941]
[1617548872542,1.55816822,58083.0,58082.0,0.76132941]
[1617548873946,1.25577655,58083.0,58082.0,0.76132941]
[1617548874138,1.10725655,58083.0,58082.0,0.76132941]
[1617548874346,1.40958741,58083.0,58082.0,0.76132941]
[1617548875345,1.10725655,58083.0,58082.0,1.12408436]
[1617548875538,4.44405655,58083.0,58082.0,1.12408436]
[1617548875744,4.79760431,58083.0,58082.0,1.12408436]
[1617548875941,4.74640431,58083.0,58082.0,1.12408436]
[1617548876139,4.74640431,58083.0,58082.0,1.06344433]
[1617548876339,4.74640431,58083.0,58082.0,1.05814433]
[1617548876539,1.40960431,58083.0,58082.0,1.05814433]
[1617548876753,4.77980431,58083.0,58082.0,1.05814433]
[1617548876940,4.47745655,58083.0,58082.0,1.05814433]
[1617548877139,5.14263816,58083.0,58082.0,1.05814433]
[1617548877340,5.25227816,58083.0,58082.0,1.05814433]
[1617548878040,5.25227816,58083.0,58082.0,1.05574433]
[1617548878542,5.25227816,58083.0,58082.0,0.61245495]
[1617548880944,5.25227816,58083.0,58082.0,0.60625495]
[1617548881145,5.25227816,58083.0,58082.0,1.04996294]
[1617548883263,5.69570398,58083.0,58082.0,0.60625495]
[1617548884049,5.69570398,58083.0,58082.0,0.2435]
[1617548884651,10.69570398,58083.0,58082.0,0.2435]
[1617548887754,11.19881741,58083.0,58082.0,0.2435]
[1617548889156,10.69570398,58083.0,58082.0,0.2435]
[1617548889956,5.69570398,58083.0,58082.0,0.2435]
[1617548893264,5.58606398,58083.0,58082.0,0.2435]
[1617548894064,1.21586398,58083.0,58082.0,0.2435]
[1617548894263,2.21586398,58083.0,58082.0,3.4589]
[1617548894465,2.21586398,58083.0,58082.0,3.82174252]
[1617548895066,1.77243816,58083.0,58082.0,3.82174252]
[1617548898268,0.77243816,58083.0,58082.0,3.82174252]
[1617548898468,0.77243816,58083.0,58082.0,4.26549218]
[1617548898869,0.66518161,58083.0,58082.0,4.26549218]
[1617548899069,0.66518161,58083.0,58082.0,5.76549218]
[1617548899271,0.66518161,58083.0,58082.0,6.26968466]
[1617548899272,0.30236444,58083.0,58082.0,6.26968466]
[1617548899670,0.00513739,58083.0,58082.0,6.26968466]
[1617548900072,0.00211662,58085.0,58082.0,6.26968466]
[1617548900270,0.00211662,58085.0,58082.0,3.05428466]
[1617548900670,0.00211662,58085.0,58084.0,2.81083]
[1617548900870,0.00211662,58085.0,58084.0,2.9486]
[1617548901070,0.0021172,58091.0,58084.0,3.78283167]
[1617548901270,0.0021172,58091.0,58086.0,2.7632]
[1617548901471,0.00211705,58093.0,58087.0,1.5]
[1617548901671,0.00211705,58093.0,58087.0,1.77]
[1617548902071,0.00211705,58094.0,58092.0,1.30864403]
[1617548902272,0.00211705,58094.0,58093.0,1.60725655]
[1617548902474,0.00211705,58095.0,58093.0,1.87725655]
[1617548902872,0.00211688,58099.0,58094.0,1.45905962]
[1617548903073,0.23405173,58102.0,58100.0,1.5]
[1617548903283,0.36298086,58109.0,58100.0,1.5]
[1617548903473,0.36298086,58109.0,58101.0,0.01]
[1617548903677,0.36296381,58110.0,58101.0,1.37697131]
[1617548903872,0.36296381,58110.0,58102.0,1.5]
[1617548904073,0.36295344,58115.0,58108.0,1.30533044]
[1617548904272,0.36295344,58115.0,58110.0,0.10725655]
[1617548904472,0.36295344,58115.0,58110.0,1.96664543]
[1617548904673,0.3609426,58127.0,58110.0,1.97664543]
[1617548905072,0.10725655,58131.0,58110.0,2.03724997]
[1617548905073,0.36093429,58129.0,58110.0,2.03724997]
[1617548905375,0.36092911,58130.0,58110.0,2.03724997]
[1617548905575,0.36092911,58130.0,58110.0,2.47623819]
[1617548905774,0.46817805,58131.0,58110.0,2.47623819]
[1617548906674,0.10725655,58131.0,58110.0,2.47623819]
[1617548908574,0.10725655,58131.0,58110.0,2.03724997]
[1617548908974,0.10725655,58131.0,58110.0,2.47579787]
[1617548910578,1.0,58124.0,58110.0,2.47579787]
[1617548910777,1.0,58124.0,58110.0,2.03724997]
[1617548910976,0.10725655,58131.0,58110.0,2.03724997]
[1617548910977,1.0,58123.0,58110.0,2.03724997]
[1617548911178,1.0,58122.0,58110.0,2.03724997]
[1617548911578,0.5337,58111.0,58110.0,2.03724997]
[1617548911779,0.5337,58111.0,58110.0,2.13926997]
[1617548911980,0.4818,58111.0,58110.0,2.57781284]
[1617548916883,0.4818,58111.0,58110.0,2.13926997]
[1617548921089,0.4818,58111.0,58110.0,2.03724997]
[1617548921489,0.4818,58111.0,58110.0,2.18071997]
[1617548922689,0.4818,58111.0,58110.0,3.18071997]
[1617548923492,0.4818,58111.0,58110.0,3.61712805]
[1617548923691,0.4818,58111.0,58110.0,3.18071997]
[1617548927092,0.4818,58111.0,58110.0,3.61731835]
[1617548927491,0.4818,58111.0,58110.0,3.18071997]
[1617548927992,0.4818,58111.0,58110.0,3.23201997]
[1617548928393,0.4818,58111.0,58110.0,2.23201997]
[1617548928794,0.4818,58111.0,58110.0,2.08854997]
[1617548929396,0.4818,58111.0,58110.0,2.03724997]
[1617548933702,0.60773,58111.0,58110.0,2.03724997]
[1617548933900,0.60773,58111.0,58110.0,0.53724997]
[1617548934101,1.60773,58111.0,58110.0,0.53724997]
[1617548934301,4.83063,58111.0,58110.0,0.53724997]
[1617548934502,4.83063,58111.0,58110.0,0.11725655]
[1617548936506,4.93788655,58111.0,58110.0,0.11725655]
[1617548937908,1.71498655,58111.0,58110.0,0.11725655]
[1617548938306,1.71498655,58111.0,58110.0,3.33895655]
[1617548940108,0.71498655,58111.0,58110.0,3.33895655]
[1617548940308,1.71498655,58111.0,58110.0,3.33895655]
[1617548941910,1.71498655,58111.0,58110.0,0.11725655]
[1617548942310,4.98728655,58111.0,58110.0,0.11725655]
[1617548942911,5.03928655,58111.0,58110.0,0.11725655]
[1617548945017,1.76698655,58111.0,58110.0,0.11725655]
[1617548945518,1.76698655,58111.0,58110.0,3.54295655]
[1617548945717,1.71498655,58111.0,58110.0,3.54295655]
[1617548947820,0.71498655,58111.0,58110.0,3.54295655]
[1617548948021,1.71498655,58111.0,58110.0,3.54295655]
[1617548952625,1.60773,58111.0,58110.0,3.54295655]
[1617548953224,1.60773,58111.0,58110.0,4.84681435]
[1617548954726,1.71498655,58111.0,58110.0,4.84681435]
[1617548956726,1.71498655,58111.0,58110.0,4.34533058]
[1617548957129,1.71498655,58111.0,58110.0,4.84603395]
[1617548958029,1.71498655,58111.0,58110.0,4.34533058]
[1617548958330,1.71498655,58111.0,58110.0,4.84604081]
[1617548959835,0.71498655,58111.0,58110.0,4.84604081]
[1617548960034,1.58905655,58111.0,58110.0,4.84604081]
[1617548960835,1.58905655,58111.0,58110.0,4.34533058]
[1617548961035,1.69190655,58111.0,58110.0,4.34533058]
[1617548961435,1.69190655,58111.0,58110.0,4.846039]
[1617548962137,1.69190655,58111.0,58110.0,4.34533058]
[1617548963537,0.69190655,58111.0,58110.0,4.34533058]
[1617548963735,1.69190655,58111.0,58110.0,4.34533058]
[1617548964136,1.69190655,58111.0,58110.0,3.90402486]
[1617548964337,1.69190655,58111.0,58110.0,3.54295655]
[1617548964738,1.69190655,58111.0,58110.0,4.34398278]